Cogmind - Beta 15 X1 @@@ ROGUE MODE // 2024.11.09 @ 16:10:35 Player: Some Pennies Result: Destroyed by D4-DUF(R) with Subdweller Laser Performance ------------- Evolutions (0) 0 Regions Visited (3) 600 Robots Destroyed (48) 240 Value Destroyed (1013) 1013 Prototype IDs (5) 100 Alien Tech Used (0) 0 Bonus (108) 108 TOTAL SCORE: 2061 Bonus ------- Follower Combat Kills 109 Friendly Fire -1 Cogmind --------- Core Integrity 0/250 Matter 282/300 Energy 220/250 System Corruption 0% Temperature Cool (12) Movement Treading (160) Location -10/Subcaves Parts ------- > --- POWER (1) -------- Ion Engine > --- PROPULSION (2) --- Light Treads Spiked Treads > --- UTILITY (2) ------ Large Storage Unit Experimental Sensor Array > --- WEAPON (2) ------- Subdweller Laser Subdweller Beam Cannon > --- INVENTORY (15) --- Ion Engine Cargo Legs Subdweller Monowheel Improved Heat Sink ECM Suite Light Armor Plating Light Armor Plating Hacking Suite Hacking Suite Improved Trap Extractor (0/6) Pulse Rifle Barrage Gun Rocket Launcher Makeshift Hammer Peak State ------------ > --- POWER ------------ Ion Engine > --- PROPULSION ------- Light Treads Spiked Treads > --- UTILITY ---------- Large Storage Unit Experimental Sensor Array > --- WEAPON ----------- Pulse Rifle Ion Cannon > --- INVENTORY -------- Ion Engine Cargo Legs Subdweller Monowheel Improved Heat Sink Seismic Detector ECM Suite Light Armor Plating Light Armor Plating Hacking Suite Hacking Suite Improved Trap Extractor Barrage Gun Rocket Launcher Makeshift Hammer [Rating: 24] Favorites ----------- Power Ion Engine Engine Ion Engine Propulsion Light Treads Treads Light Treads Utility Large Storage Unit Device Heat Sink Storage Large Storage Unit Protection Light Armor Plating Weapon Medium Laser Energy Gun Medium Laser Energy Cannon Ion Cannon Ballistic Gun Assault Rifle Launcher Rocket Launcher Impact Weapon Makeshift Hammer Build | -11 -10 -10 -10 ------- Run | Yrd Mat Min Sub Slots Evolved . | . . . . Power . | . . . . Propulsion . | . . . . Utility . | . . . . Weapon . | . . . . Parts Attached 38 | 7 12 9 10 Power 4 | 1 3 . . Engine 4 | 1 3 . . Core . | . . . . Reactor . | . . . . Propulsion 4 | 2 . . 2 Treads 4 | 2 . . 2 Leg . | . . . . Wheel . | . . . . Hover . | . . . . Flight . | . . . . Utility 12 | 2 4 4 2 Device 5 | 1 2 1 1 Storage 3 | 1 2 . . Processor . | . . . . Hackware . | . . . . Protection 4 | . . 3 1 Artifact . | . . . . Weapon 18 | 2 5 5 6 Energy Gun 11 | 1 4 4 2 Energy Cannon 2 | . . 1 1 Ballistic Gun 3 | 1 1 . 1 Ballistic Cannon . | . . . . Launcher 1 | . . . 1 Special Weapon . | . . . . Impact Weapon 1 | . . . 1 Slashing Weapon . | . . . . Piercing Weapon . | . . . . Special Melee Weapon . | . . . . Unidentified Prototypes 1 | . . 1 . Parts Lost 1 | . . 1 . Power . | . . . . Propulsion . | . . . . Utility . | . . . . Weapon 1 | . . 1 . Highest Loss Streak 1 | . . 1 . To Critical Strikes . | . . . . Average Backups 13 | 4 13 14 14 Power . | . 1 1 1 Propulsion 2 | 1 2 2 1 Utility 6 | . 4 8 7 Weapon 4 | 1 5 3 3 Tool/Special . | . . . . Unused Backups 29 | 1 10 5 13 Power 3 | . 2 . 1 Propulsion 9 | . 4 1 4 Utility 10 | . 2 2 6 Weapon 7 | 1 2 2 2 Tool/Special . | . . . . Average Slot Usage (%) 99 | . 99 99 100 Engine 14 | . 14 14 14 Treads 27 | . 27 28 28 Device 7 | . 14 1 6 Storage 14 | . 14 14 14 Protection 6 | . . 12 7 Energy Gun 18 | . 16 23 13 Energy Cannon 3 | . . 3 8 Ballistic Gun 5 | . 11 1 4 Peak Build Rating 24 | 7 8 21 24 Average Rating 11 | 5 7 11 17 On Entrance 7 | . 7 8 14 Naked Turns . | . . . . Heaviest Build 40 | 11 30 37 40 Greatest Support 40 | 40 40 40 40 Greatest Overweight (x) 1 | . 1 . . Average Overweight (x) . | . . . . Largest Inventory Capacity 15 | 8 15 15 15 Average Capacity 14 | 7 13 15 15 Most Carried 15 | 7 15 15 15 Average Carried 13 | 4 13 14 14 Final Capacity 15 | 8 15 15 15 Final Carried 15 | 6 15 15 15 Class Distribution -------------------- 100% | Mutant Dominant Class ---------------- Mutant | -10/Materials Mutant | -10/Mines Mutant | -10/Subcaves Resources | -11 -10 -10 -10 ----------- Run | Yrd Mat Min Sub Matter Collected 1094 | 281 346 67 400 Remotely . | . . . . Salvage Created 1678 | 144 969 164 401 Parts 116 | 10 58 10 38 Haulers Intercepted 2 | . 2 . . Recyclers Shooed 3 | 1 2 . . Parts Field Recycled . | . . . . Retrieved Matter . | . . . . Parts Self-Destructed 21 | . . . 21 Prevented . | . . . . Kills | -11 -10 -10 -10 ------- Run | Yrd Mat Min Sub Combat Hostiles Destroyed 34 | . 17 4 13 Guns 30 | . 17 4 9 Cannons 4 | . . . 4 Classes Destroyed 9 | 2 5 . 2 Builder 1 | . 1 . . Tunneler 3 | 3 . . . Hauler 2 | . 2 . . Recycler 6 | 1 5 . . Watcher 2 | . 2 . . Swarmer 14 | . 9 1 4 Grunt 11 | . 8 3 . Sentry 1 | . . . 1 Subdweller 8 | . . . 8 Best Kill Streak 5 | 4 5 1 4 Combat Bots Only 4 | . 3 1 4 Max Kills in Single Turn 1 | 1 1 1 1 Gunslinging . | . . . . Exploded . | . . . . Melee . | . . . . Uniques/NPCs Destroyed . | . . . . Combat | -11 -10 -10 -10 -------- Run | Yrd Mat Min Sub Hostile Shots Fired 151 | . 95 19 37 Missed 47 | . 24 9 14 Damage Taken 1321 | . 708 141 472 Core 264 | . 192 10 62 Absorbed by Shields . | . . . . Regen/Repaired (Parts) 159 | . 159 . . Core Remaining (%) 100 | 100 . . . Volleys Fired 153 | 11 66 14 62 Largest 2 | 2 2 2 2 Hottest 140 | 60 100 115 140 Shots Fired 276 | 22 131 28 95 Gun 248 | 22 131 28 67 Cannon 24 | . . . 24 Launcher 4 | . . . 4 Special . | . . . . Kinetic 88 | 11 57 6 14 Thermal 183 | 11 74 21 77 Explosive 4 | . . . 4 Electromagnetic 1 | . . 1 . Robot Hit Streak 16 | 4 15 6 16 Robot Miss Streak 4 | 3 4 3 2 Penetration Max . | . . . . Secondary Targets 4 | . 3 . 1 Max Gunslinging Chain 1 | . 1 . 1 Shots Hit Robots 160 | 10 78 18 54 Core Hits 77 | 7 40 8 22 Critical Kills . | . . . . Critical Parts Destroyed . | . . . . Critical Strikes 5 | . 4 . 1 Burn 4 | . 4 . . Destroy 1 | . . . 1 Melee Attacks 2 | . . . 2 Impact 2 | . . . 2 Slashing . | . . . . Piercing . | . . . . Sneak Attacks . | . . . . Combat Hostiles . | . . . . Follow-up Attacks . | . . . . Damage Inflicted 2679 | 125 1050 249 1255 Guns 2137 | 125 1042 249 721 Cannons 437 | . . . 437 Explosions 97 | . . . 97 Melee . | . . . . Ramming 8 | . 8 . . Kinetic 776 | 57 443 68 208 Thermal 1786 | 68 599 169 950 Explosive 97 | . . . 97 Electromagnetic 12 | . . 12 . Impact . | . . . . Slashing . | . . . . Piercing . | . . . . Highest Corruption . | . . . . Average Corruption . | . . . . Corruption Purged . | . . . . Corruption Blocked . | . . . . Overload Shots . | . . . . Overflow Damage . | . . . . Projectiles . | . . . . Explosions . | . . . . Melee . | . . . . Knockbacks . | . . . . Impact . | . . . . Kinetic . | . . . . Secondary . | . . . . Self-Inflicted Damage 61 | . . . 61 Shots 2 | . . . 2 Rammed 1 | . 1 . . Targets Rammed 2 | . 2 . . Kicked . | . . . . Crushed 1 | . 1 . . Highest Temperature 255 | 40 255 105 123 Average Temperature 55 | 21 69 44 53 Received Heat Transfer 381 | . 276 75 30 Siege Activations . | . . . . Martial Activations . | . . . . Shielding Activations . | . . . . Robots Disrupted . | . . . . Combat Hostiles . | . . . . Robots Corrupted . | . . . . Combat Hostiles . | . . . . Parts Fried . | . . . . Impact Corruptions . | . . . . Robots Melted . | . . . . Combat Hostiles . | . . . . Parts Melted 7 | . 3 . 4 Heat Transferred 4079 | 150 2036 444 1449 Parts Sabotaged . | . . . . Parts Stolen . | . . . . Parts Stripped . | . . . . Power Chain Reactions . | . . . . Alert | -11 -10 -10 -10 ------- Run | Yrd Mat Min Sub Maximum Alert Level . | . . . . Low Security (%) 100 | 100 100 100 . Level 1 . | . . . . Level 2 . | . . . . Level 3 . | . . . . Level 4 . | . . . . Level 5 . | . . . . High Security . | . . . . Max Security . | . . . . Peak Influence 159 | 10 159 92 . Initial 51 | . . 51 . Average 39 | . 74 11 . Influence Increases 873 | 20 557 186 110 Destroy 0b10 Robot/C 580 | . 340 140 100 Destroy 0b10 Robot/NC 70 | 20 50 . . Destroy Leader 98 | . 58 30 10 Allied During Kill 16 | . . 16 . Successful Hack 18 | . 18 . . Select Force Hacks 60 | . 60 . . Disable Machine 15 | . 15 . . Destroy Structure 1 | . 1 . . Lose Combat Pursuer 15 | . 15 . . Influence Decreases 793 | 20 426 237 110 Time Decay 783 | 20 426 227 110 Lost Part 10 | . . 10 . Squads Dispatched 2 | . 2 . . Investigation 2 | . 2 . . Extermination . | . . . . Reinforcement . | . . . . Assault . | . . . . Garrison . | . . . . Intercept . | . . . . Searches Triggered . | . . . . Construction Impeded . | . . . . Haulers Reinforced . | . . . . Active Scanning Responses . | . . . . Cargo Convoy Interrupts . | . . . . Stealth | -11 -10 -10 -10 --------- Run | Yrd Mat Min Sub Distress Signals 3 | . 3 . . Communications Jammed . | . . . . Distress Signals . | . . . . Times Spotted 46 | . 23 7 16 Peak Tracking Total 4 | . 4 1 3 Tactical Retreats 1 | . 1 . . Traps | -11 -10 -10 -10 ------- Run | Yrd Mat Min Sub Traps Triggered 2 | . 1 . 1 Indirectly . | . . . . Trap Hack Attempts . | . . . . Triggered . | . . . . Disarmed . | . . . . Reprogrammed . | . . . . Reused . | . . . . Traps Extracted . | . . . . Installed . | . . . . Triggered . | . . . . Machines | -11 -10 -10 -10 ---------- Run | Yrd Mat Min Sub Machines Disabled 1 | . 1 . . Max in Single Turn 1 | . 1 . . Machines Repaired . | . . . . Machines Dismantled . | . . . . Machines Sabotaged . | . . . . Overloaded Fab Kills . | . . . . Hacking | -11 -10 -10 -10 --------- Run | Yrd Mat Min Sub Machines Accessed 10 | . 9 1 . Terminals 6 | . 6 . . Fabricators . | . . . . Repair Stations 1 | . 1 . . Recycling Units 2 | . 2 . . Scanalyzers . | . . . . Garrison Access . | . . . . Total Hacks 29 | . 28 1 . Successful 20 | . 19 1 . Failed 9 | . 9 . . Catastrophic 1 | . 1 . . Database Lockouts . | . . . . Manual 17 | . 17 . . Terminals 19 | . 19 . . Fabricators . | . . . . Repair Stations 4 | . 4 . . Recycling Units 5 | . 5 . . Scanalyzers . | . . . . Garrison Access . | . . . . Terminal Hacks 6 | . 5 1 . Robot Analysis 2 | . 2 . . Prototype ID Bank 3 | . 3 . . Open Door 1 | . . 1 . Fabricator Hacks . | . . . . Repair Station Hacks 4 | . 4 . . Scan Component 2 | . 2 . . Repair 2 | . 2 . . Recycling Unit Hacks 2 | . 2 . . Retrieve Components 2 | . 2 . . Scanalyzer . | . . . . Garrison Access Hacks . | . . . . Unauthorized Hacks 8 | . 8 . . Terminals 6 | . 6 . . Botnet 1 | . 1 . . Operators 1 | . 1 . . Skim 4 | . 4 . . Fabricators . | . . . . Repair Stations . | . . . . Recycling Units 2 | . 2 . . Tunnel 2 | . 2 . . Scanalyzers . | . . . . Garrison Access . | . . . . Data Cores Recovered . | . . . . Used . | . . . . Hacking Detections 7 | . 7 . . Full Trace Events . | . . . . Feedback Events . | . . . . Feedback Blocked . | . . . . Robot Schematics Acquired . | . . . . Robots Built . | . . . . Authchips . | . . . . Time . | . . . . Total Robot Build Rating . | . . . . Part Schematics Acquired . | . . . . Parts Built . | . . . . Authchips . | . . . . Time . | . . . . Total Part Build Rating . | . . . . Parts Repaired 2 | . 2 . . Time 52 | . 52 . . Parts Recycled . | . . . . Recycled Matter . | . . . . Retrieved Matter . | . . . . Retrieved Components 14 | . 14 . . Parts Scanalyzed . | . . . . Part Schematics Acquired . | . . . . Parts Damaged . | . . . . Bothacking | -11 -10 -10 -10 ------------ Run | Yrd Mat Min Sub Used RIF Installer . | . . . . Robots Hacked . | . . . . Non-combat . | . . . . Combat . | . . . . Robot Hacks Applied . | . . . . Relay Couplers Released . | . . . . Fabnet Peak Effective % . | . . . . Robots Rewired . | . . . . Allies Hacked . | . . . . Hacks Repelled . | . . . . Allies | -11 -10 -10 -10 -------- Run | Yrd Mat Min Sub Total Allies 3 | . . 3 . Largest Group 3 | . . 3 3 Highest-Rated Group 40 | . . 40 40 Highest-Rated Ally 16 | . . 16 16 Total Orders 4 | . . 2 2 STAY 2 | . . 1 1 FOLLOW 2 | . . 1 1 Ally Attacks 27 | . . 8 19 Total Damage 255 | . . 98 157 Kills 5 | . . 3 2 Allies Corrupted . | . . . . Allies Melted . | . . . . Intel | -11 -10 -10 -10 ------- Run | Yrd Mat Min Sub Active Infowar (turns) 1233 | 61 706 1 465 Sensors 325 | . . 1 324 Seismic 908 | 61 706 . 141 Robot Analysis Total 2 | . 2 . . Derelict Logs Recovered 3 | . . 1 2 Drone Launches . | . . . . Drone Recoveries . | . . . . Exploration | -11 -10 -10 -10 ------------- Run | Yrd Mat Min Sub Turns Passed 4336 | 155 1552 1653 976 Spaces Moved 1918 | 76 760 683 399 Core 13 | 13 . . . Treads 1905 | 63 760 683 399 Legs . | . . . . Wheels . | . . . . Hover . | . . . . Flight . | . . . . Fastest Speed 50 | 50 160 160 160 Average Speed 159 | 141 160 160 160 Slowest Speed 240 | 160 240 160 160 Overloaded Moves . | . . . . Propulsion Burnouts . | . . . . Robots Hopped . | . . . . Cave-ins Triggered . | . . . . Exploration Rate (%) 52 | 4 91 98 15 Regions Visited 3 Branch Regions 2 Pre-discovered Areas 2 | . 2 . . Known Exits Taken . | . . . . Unknown Exits Taken 3 | 1 1 1 . Scrap Searched 12 | . . 1 11 Spaces Dug 39 | . . . 39 Terrain Destroyed 71 | . . . 71 Melee 2 | . . . 2 Projectile 16 | . . . 16 AOE 53 | . . . 53 Terrain Rammed . | . . . . Walls Destroyed . | . . . . Machines Disabled . | . . . . Actions | -11 -10 -10 -10 --------- Run | Yrd Mat Min Sub Total 2924 | 101 970 1219 634 Wait 695 | . 78 494 123 Move 1915 | 75 759 682 399 Hop . | . . . . Pick Up 46 | 7 24 8 7 Fast Attach 14 | 7 5 1 1 Attach 1 | . . 1 . Detach . | . . . . Swap 50 | . 13 8 29 Drop 46 | 1 23 11 11 Fire 153 | 11 66 14 62 Melee 2 | . . . 2 Ram . | . . . . Kick . | . . . . Crush 2 | . 2 . . Escape Stasis . | . . . . Rewire . | . . . . Trap . | . . . . Miscellaneous . | . . . . Route ------- -11/Scrapyard -10/Materials (discovered 4 exits: [*Mat x2] / *Min x2) -10/Mines (discovered 4 exits: [*Mat x2] / [*Exi] / [*Sub]) -10/Subcaves (discovered 1 exit: [*Mat]) History --------- Turn | Location | Event 10 | -11/Scrapyard | Discovered new exit (range 15) 156 | -11/Scrapyard | Entered Materials 309 | -10/Materials | Build established: Mutant 376 | -10/Materials | Discovered new exit (range 13) 562 | -10/Materials | Discovered new exit (range 16) 752 | -10/Materials | Repaired Lgt. Treads 779 | -10/Materials | Repaired Lgt. Treads 848 | -10/Materials | Core integrity fell below 50% 920 | -10/Materials | Discovered new exit (range 16) 1086 | -10/Materials | Discovered new exit (range 5) 1708 | -10/Materials | Entered Mines 1732 | -10/Mines | Learned Materials security intel 1784 | -10/Mines | Core integrity fell below 20% 1798 | -10/Mines | A weapon hastily lodged in a ceiling crevice suddenly fell to the ground 1921 | -10/Mines | Discovered new exit (range 9) 1936 | -10/Mines | Assisted by bots powering up and referring to "LRC-V3" 2051 | -10/Mines | Discovered new exit (range 9) 2246 | -10/Mines | Found a damaged Exp. Sensor Array with a note attached 2250 | -10/Mines | Found Prototype Device 2285 | -10/Mines | Discovered new exit (range 9) 2453 | -10/Mines | Met a Derelict who couldn't figure out how to use a Trap Extractor 2989 | -10/Mines | Identified Exp. Sensor Array 3138 | -10/Mines | Received a Rocket Launcher from a helpful Derelict 3208 | -10/Mines | Deemed a non-threat by the Exiles lab entrance 3208 | -10/Mines | Discovered new exit (range 5) 3361 | -10/Mines | Entered Subcaves 3361 | -10/Subcaves | Accompanied by 3 allies 3544 | -10/Subcaves | Learned 4 Materials zone layouts 3723 | -10/Subcaves | A Subdweller sparked back to life 3723 | -10/Subcaves | A Subdweller sparked back to life 3723 | -10/Subcaves | A Subdweller sparked back to life 3774 | -10/Subcaves | Found Prototype Leg 3775 | -10/Subcaves | Lost 3 allies 3779 | -10/Subcaves | Learned location of 1 exit from Materials 3975 | -10/Subcaves | Discovered new exit (range 9) 4186 | -10/Subcaves | Ambushed by Subdweller buried in earth 4186 | -10/Subcaves | Ambushed by Subdweller buried in earth 4337 | -10/Subcaves | Destroyed by D4-DUF(R) with Subdweller Laser Last Messages --------------- 04215_ The unstable cave ceiling collapses. 04215_ Aluminum Leg crushed. 04217_ YZ-EBS(R): "ARGHSUB!" 04217_ GD-V8E(R) destroyed. 04219_ The unstable cave ceiling collapses. 04219_ Scrap Shield Fragment crushed. 04221_ The unstable cave ceiling collapses. 04226_ YZ-EBS(R) destroyed. 04227_ The unstable cave ceiling collapses. 04227_ Sub. Shrapnel Launcher crushed. 04232_ Dropped Sub. Machine Gun. 04232_ Acquired Sub. Beam Cannon. 04240_ Acquired 31 matter. 04263_ Acquired 3 matter. 04271_ Acquired 25 matter. 04276_ Subatomizers dissect the Sub. Monowheel. 04295_ Acquired 39 matter. 04298_ Acquired 5 matter. 04304_ Acquired 37 matter. Map ----- +----------------------------------------------------+ | ?????????????????????????????????????????????????? | | ?????????????????????????????????????????????????? | | ?????????????????????????????????????????????????? | | ?????????????????????????????????????????????????? | | ?????????????????????????????????????????????? ??? | | ?????????????????????????????????????????????? ??? | | ????????????????????????????????????????????? ???? | | ???????????????########?????????????????????# ???? | | ?????????????###" ""###??????????????????? ????? | | ????????????##"" [ "##????????????????## ????? | | ????????????# * [ #??????????????## ?????? | | ???????????##" ]%%[" ##????????????## ?????? | | ???????????# " [%#%=" "#????????????# ??????? | | ???????????#" "" /%%%! "#????????????# ??????? | | ???????????# =[|= #?????????????# ######## | | ???????????#" ##### ^"#????????????## ## # | | ???????????##&& =# ""#???????????## | | ????????????#""* ## ##???????????# | | ??????????####"" ## "#######?????????# ## # | | ???#####?## ######" "#### ##????????# = | | ?### # ### ### " ## #???###??# * ! | | ?# ! #???# #### ## ## | | ## "[ % #### #### ###???# ## ######## | | # "%"*[ = ###??# ## ###??## # #???## | | # !&% ! ##??## ;#### # #?### | | #" !=! #?## @ R ##?# | | =& # #?# ## " ### ##?# """ | | " #### #### ##?###?#""" ##" | | #?## #??# ###"#?????#"""##?## | | # #?# ##??# ###"#????? """????? | | ### ### ###??## ####????? ""?????? | | ??## #?# ##???## #???????????????? | | ???# #? #????# #???????????????? | | ???# ?### #???# ""??????????? | | ???## #??####### ???# ## """"????????? | | ????####????????## ???## ###?### #""#????????? | | ?????????????????###??????##???????###???????????? | | ?????????????????????????????????????????????????? | | ?????????????????????????????????????????????????? | | ?????????????????????????????????????????????????? | | ?????????????????????????????????????????????????? | | ?????????????????????????????????????????????????? | | ?????????????????????????????????????????????????? | | ?????????????????????????????????????????????????? | | ?????????????????????????????????????????????????? | | ?????????????????????????????????????????????????? | | ?????????????????????????????????????????????????? | | ?????????????????????????????????????????????????? | | ?????????????????????????????????????????????????? | | ?????????????????????????????????????????????????? | +----------------------------------------------------+ Best States ------------- Heat Dissipation 35 Energy Generation 10 Energy Capacity 250 Matter Stores 300 Matter Capacity 300 Sight Range 16 Robot Scan Range 20 Terrain Scan Density 10 Armor Coverage 150 Evasion (%) 50 Recoil Reduction 2 Item Schematics ----------------- None Robot Schematics ------------------ None Fabricated ------------ Nothing Repaired ---------- Lgt. Treads | 30% | -10/Materials Lgt. Treads | 55% | -10/Materials Alien Tech Used ----------------- None Achievements -------------- None Challenges ------------ None Game ------ Seed CommMetafiberDeflector Manual? 0 Play Time 00:26:21 Cumulative 444.4 hours Start 2024.11.09 @ 15:37:43 End 2024.11.09 @ 16:10:35 Sessions 2 Manual Loads 0 Difficulty Rogue Special Mode None Game No. 296 Rogue 291 Adventurer 5 Explorer 0 Win Type - Total 11 Types 5/0/5/0/0/0/1/0/0 Lore% 79 Gallery% 89 Achievement% 75 Wizard Run 0 Options --------- Layout 2 ASCII 0 Keyboard 0 Movement Mouse Keybinds 0 Fullscreen 2 Font 24/Smallcaps Map View 50x44 Zoom Use 0% Tactical HUD 1 Map Filters NONE Filters NONE Steam 1 RUN: b1a71bb3-75c6-401d-965b-c4ca4017a3a8